[Event "Titled Tuesday Blitz July 05 Late 2022"]
[White "Sjugirov, Sanan"]
[Black "Vusatiuk, Vladimir"]
[WhiteFideId "4189302"]
[BlackFideId "14118610"]
[WhiteElo "2609"]
[BlackElo "2157"]
[Result "1-0"]
[Round "01"]
[TimeControl "180+1"]
[Date "2022.07.05"]
[WhiteClock "0:00:08"]
[BlackClock "0:00:09"]

1. e4 {[%clk 0:03:00]}  e6 {[%clk 0:03:00]} 2. d4 {[%clk 0:03:00]}  d5 {[%clk 0:03:00]} 3. e5 {[%clk 0:03:01]}  c5 {[%clk 0:03:01]} 4. c3 {[%clk 0:03:02]}  Nc6 {[%clk 0:03:01]} 5. Nf3 {[%clk 0:03:02]}  Nge7 {[%clk 0:03:02]} 6. Bd3 {[%clk 0:02:57]}  cxd4 {[%clk 0:03:02]} 7. cxd4 {[%clk 0:02:57]}  Nf5 {[%clk 0:03:03]} 8. Bxf5 {[%clk 0:02:57]}  exf5 {[%clk 0:03:03]} 9. O-O {[%clk 0:02:58]}  h6 {[%clk 0:03:03]} 10. Nc3 {[%clk 0:02:57]}  Be6 {[%clk 0:03:03]} 11. a3 {[%clk 0:02:50]}  g5 {[%clk 0:02:53]} 12. b4 {[%clk 0:02:43]}  f4 {[%clk 0:02:07]} 13. Na4 {[%clk 0:02:30]}  g4 {[%clk 0:01:54]} 14. Ne1 {[%clk 0:02:29]}  f3 {[%clk 0:01:55]} 15. Be3 {[%clk 0:02:20]}  fxg2 {[%clk 0:01:38]} 16. Nxg2 {[%clk 0:02:20]}  h5 {[%clk 0:01:39]} 17. Nf4 {[%clk 0:02:17]}  Qd7 {[%clk 0:01:16]} 18. Rc1 {[%clk 0:02:09]}  h4 {[%clk 0:01:12]} 19. Nc5 {[%clk 0:01:32]}  Bxc5 {[%clk 0:01:12]} 20. Rxc5 {[%clk 0:01:33]}  Ne7 {[%clk 0:00:54]} 21. Qc2 {[%clk 0:01:23]}  g3 {[%clk 0:00:32]} 22. Rc7 {[%clk 0:01:20]}  Qb5 {[%clk 0:00:32]} 23. Rc1 {[%clk 0:01:10]}  gxf2+ {[%clk 0:00:24]} 24. Kxf2 {[%clk 0:01:09]}  Nf5 {[%clk 0:00:16]} 25. Rg1 {[%clk 0:00:56]}  Qb6 {[%clk 0:00:11]} 26. Nh5 {[%clk 0:00:46]}  Nxd4 {[%clk 0:00:08]} 27. Nf6+ {[%clk 0:00:40]}  Kd8 {[%clk 0:00:09]} 28. Qc5 {[%clk 0:00:13]}  Qxc7 {[%clk 0:00:07]} 29. Qxd4 {[%clk 0:00:13]}  Qc2+ {[%clk 0:00:06]} 30. Bd2 {[%clk 0:00:14]}  Rc8 {[%clk 0:00:05]} 31. Nxd5 {[%clk 0:00:12]}  Qf5+ {[%clk 0:00:04]} 32. Ke3 {[%clk 0:00:11]}  Bxd5 {[%clk 0:00:04]} 33. Qxd5+ {[%clk 0:00:12]}  Qd7 {[%clk 0:00:04]} 34. Qf3 {[%clk 0:00:10]}  Kc7 {[%clk 0:00:05]} 35. Rg7 {[%clk 0:00:02]}  Rhf8 {[%clk 0:00:05]} 36. Qf4 {[%clk 0:00:02]}  Kb8 {[%clk 0:00:03]} 37. e6+ {[%clk 0:00:02]}  Qc7 {[%clk 0:00:04]} 38. exf7 {[%clk 0:00:01]}  Qxf4+ {[%clk 0:00:03]} 39. Kxf4 {[%clk 0:00:02]}  Rc7 {[%clk 0:00:04]} 40. Kg4 {[%clk 0:00:02]}  Rcxf7 {[%clk 0:00:04]} 41. Rg5 {[%clk 0:00:03]}  Rf2 {[%clk 0:00:03]} 42. Be3 {[%clk 0:00:03]}  R2f3 {[%clk 0:00:02]} 43. Bc5 {[%clk 0:00:03]}  Rxa3 {[%clk 0:00:03]} 44. Bxf8 {[%clk 0:00:03]}  h3 {[%clk 0:00:03]} 45. Bd6+ {[%clk 0:00:03]}  Kc8 {[%clk 0:00:04]} 46. Bg3 {[%clk 0:00:04]}  Rb3 {[%clk 0:00:03]} 47. b5 {[%clk 0:00:04]}  a6 {[%clk 0:00:04]} 48. bxa6 {[%clk 0:00:05]}  bxa6 {[%clk 0:00:05]} 49. Kxh3 {[%clk 0:00:06]}  Kd7 {[%clk 0:00:05]} 50. Kg4 {[%clk 0:00:06]}  Ke6 {[%clk 0:00:06]} 51. h4 {[%clk 0:00:07]}  Rb1 {[%clk 0:00:06]} 52. h5 {[%clk 0:00:07]}  Ra1 {[%clk 0:00:06]} 53. h6 {[%clk 0:00:07]}  Rh1 {[%clk 0:00:07]} 54. Bh4 {[%clk 0:00:07]}  Rb1 {[%clk 0:00:07]} 55. Kh5 {[%clk 0:00:07]}  Rb8 {[%clk 0:00:08]} 56. Kg6 {[%clk 0:00:08]}  Rg8+ {[%clk 0:00:07]} 57. Kh7 {[%clk 0:00:08]}  Rxg5 {[%clk 0:00:08]} 58. Bxg5 {[%clk 0:00:08]}  Kf7 {[%clk 0:00:09]} 59. Bd2 {[%clk 0:00:07]}  Kf8 {[%clk 0:00:09]} 60. Bc3 {[%clk 0:00:07]}  Kf7 {[%clk 0:00:08]} 61. Bb4 {[%clk 0:00:07]}  a5 {[%clk 0:00:08]} 62. Bxa5 {[%clk 0:00:07]}  Kf8 {[%clk 0:00:09]} 63. Bb4+ {[%clk 0:00:07]}  Kf7 {[%clk 0:00:09]} 64. Ba3 {[%clk 0:00:08]} 1-0


[Site "https://www.chess.com"]

[Event "Titled Tuesday Blitz July 05 Late 2022"]
[White "Skuhala, Jernej"]
[Black "Idani, Pouya"]
[WhiteFideId "14605651"]
[BlackFideId "12510130"]
[WhiteElo "2381"]
[BlackElo "2610"]
[Result "1-0"]
[Round "01"]
[TimeControl "180+1"]
[Date "2022.07.06"]
[WhiteClock "0:00:16"]
[BlackClock "0:00:03"]

1. e4 {[%clk 0:03:00]}  c5 {[%clk 0:02:55]} 2. Nf3 {[%clk 0:02:57]}  d6 {[%clk 0:02:46]} 3. d4 {[%clk 0:02:57]}  cxd4 {[%clk 0:02:47]} 4. Nxd4 {[%clk 0:02:57]}  Nf6 {[%clk 0:02:47]} 5. Nc3 {[%clk 0:02:57]}  Nc6 {[%clk 0:02:45]} 6. Bg5 {[%clk 0:02:56]}  e6 {[%clk 0:02:42]} 7. Qd2 {[%clk 0:02:55]}  a6 {[%clk 0:02:39]} 8. O-O-O {[%clk 0:02:49]}  Bd7 {[%clk 0:02:37]} 9. f3 {[%clk 0:02:46]}  Be7 {[%clk 0:02:30]} 10. h4 {[%clk 0:02:45]}  h6 {[%clk 0:02:30]} 11. Be3 {[%clk 0:02:34]}  h5 {[%clk 0:02:26]} 12. Kb1 {[%clk 0:02:31]}  b5 {[%clk 0:01:57]} 13. Nxc6 {[%clk 0:02:30]}  Bxc6 {[%clk 0:01:56]} 14. Ne2 {[%clk 0:02:31]}  Qc7 {[%clk 0:01:40]} 15. Nd4 {[%clk 0:02:28]}  Bd7 {[%clk 0:01:39]} 16. Bd3 {[%clk 0:02:28]}  d5 {[%clk 0:01:36]} 17. Bg5 {[%clk 0:02:26]}  dxe4 {[%clk 0:01:32]} 18. fxe4 {[%clk 0:02:23]}  e5 {[%clk 0:01:22]} 19. Nf5 {[%clk 0:02:20]}  Bxf5 {[%clk 0:01:20]} 20. exf5 {[%clk 0:02:21]}  O-O {[%clk 0:01:19]} 21. Qe2 {[%clk 0:02:20]}  Ng4 {[%clk 0:01:16]} 22. Be4 {[%clk 0:02:14]}  Rac8 {[%clk 0:01:07]} 23. Bf3 {[%clk 0:02:14]}  Nf6 {[%clk 0:00:42]} 24. Rhe1 {[%clk 0:02:04]}  Rfe8 {[%clk 0:00:35]} 25. Bxf6 {[%clk 0:01:39]}  Bxf6 {[%clk 0:00:35]} 26. Be4 {[%clk 0:01:40]}  Qc5 {[%clk 0:00:14]} 27. Qxh5 {[%clk 0:01:32]}  Red8 {[%clk 0:00:11]} 28. Qe2 {[%clk 0:01:20]}  Bxh4 {[%clk 0:00:07]} 29. Rh1 {[%clk 0:01:12]}  Bf6 {[%clk 0:00:07]} 30. Rd3 {[%clk 0:00:38]}  Rxd3 {[%clk 0:00:06]} 31. Qxd3 {[%clk 0:00:37]}  Rd8 {[%clk 0:00:03]} 32. Qh3 {[%clk 0:00:35]}  Kf8 {[%clk 0:00:03]} 33. a3 {[%clk 0:00:34]}  Ke7 {[%clk 0:00:04]} 34. Qb3 {[%clk 0:00:29]}  Rd4 {[%clk 0:00:03]} 35. Re1 {[%clk 0:00:20]}  a5 {[%clk 0:00:03]} 36. Qe3 {[%clk 0:00:18]}  Qd6 {[%clk 0:00:02]} 37. g4 {[%clk 0:00:18]}  Bh4 {[%clk 0:00:02]} 38. Rf1 {[%clk 0:00:17]}  Kf8 {[%clk 0:00:02]} 39. g5 {[%clk 0:00:17]}  f6 {[%clk 0:00:03]} 40. g6 {[%clk 0:00:18]}  Bg5 {[%clk 0:00:03]} 41. Qb3 {[%clk 0:00:17]}  Bh6 {[%clk 0:00:03]} 42. Qf7# {[%clk 0:00:16]} 1-0


[Site "https://www.chess.com"]

[Event "Titled Tuesday Blitz July 05 Late 2022"]
[White "Tari, Aryan"]
[Black "Martins, Bruno Andre Leite"]
[WhiteFideId "1510045"]
[BlackFideId "1942255"]
[WhiteElo "2612"]
[BlackElo "2282"]
[Result "1-0"]
[Round "01"]
[TimeControl "180+1"]
[Date "2022.07.05"]
[WhiteClock "0:00:11"]
[BlackClock "0:00:02"]

1. c4 {[%clk 0:03:00]}  Nf6 {[%clk 0:02:56]} 2. g3 {[%clk 0:02:58]}  g6 {[%clk 0:02:56]} 3. Bg2 {[%clk 0:02:58]}  Bg7 {[%clk 0:02:56]} 4. Nc3 {[%clk 0:02:58]}  O-O {[%clk 0:02:56]} 5. d4 {[%clk 0:02:58]}  d6 {[%clk 0:02:55]} 6. Nf3 {[%clk 0:02:59]}  Nbd7 {[%clk 0:02:51]} 7. O-O {[%clk 0:02:58]}  c6 {[%clk 0:02:51]} 8. b3 {[%clk 0:02:53]}  Re8 {[%clk 0:02:44]} 9. Bb2 {[%clk 0:02:53]}  e5 {[%clk 0:02:40]} 10. Qc2 {[%clk 0:02:19]}  Qe7 {[%clk 0:02:39]} 11. a4 {[%clk 0:02:10]}  a5 {[%clk 0:02:16]} 12. Rad1 {[%clk 0:02:03]}  exd4 {[%clk 0:02:15]} 13. Nxd4 {[%clk 0:02:04]}  Nc5 {[%clk 0:02:13]} 14. h3 {[%clk 0:02:02]}  Bd7 {[%clk 0:02:08]} 15. Rfe1 {[%clk 0:02:01]}  Rad8 {[%clk 0:02:07]} 16. e4 {[%clk 0:02:01]}  Bc8 {[%clk 0:02:05]} 17. Kh2 {[%clk 0:01:43]}  h5 {[%clk 0:02:02]} 18. f4 {[%clk 0:01:42]}  Qc7 {[%clk 0:01:49]} 19. Nf3 {[%clk 0:01:34]}  Qb6 {[%clk 0:01:23]} 20. Nd2 {[%clk 0:01:28]}  Qc7 {[%clk 0:01:17]} 21. Qb1 {[%clk 0:01:17]}  Qb6 {[%clk 0:00:42]} 22. Ba1 {[%clk 0:01:17]}  h4 {[%clk 0:00:41]} 23. g4 {[%clk 0:01:17]}  Bxg4 {[%clk 0:00:41]} 24. hxg4 {[%clk 0:00:53]}  Nxg4+ {[%clk 0:00:42]} 25. Kh3 {[%clk 0:00:54]}  Nf2+ {[%clk 0:00:31]} 26. Kxh4 {[%clk 0:00:54]}  Ncd3 {[%clk 0:00:14]} 27. Re2 {[%clk 0:00:33]}  Nxf4 {[%clk 0:00:11]} 28. Ree1 {[%clk 0:00:22]}  Bf6+ {[%clk 0:00:10]} 29. Kg3 {[%clk 0:00:23]}  Be5 {[%clk 0:00:11]} 30. Kf3 {[%clk 0:00:20]}  g5 {[%clk 0:00:08]} 31. Re3 {[%clk 0:00:17]}  Nxd1 {[%clk 0:00:06]} 32. Nxd1 {[%clk 0:00:18]}  g4+ {[%clk 0:00:03]} 33. Kxg4 {[%clk 0:00:18]}  Nxg2 {[%clk 0:00:04]} 34. Rh3 {[%clk 0:00:14]}  Nf4 {[%clk 0:00:04]} 35. Rf3 {[%clk 0:00:14]}  Ng6 {[%clk 0:00:04]} 36. Ne3 {[%clk 0:00:13]}  Qc7 {[%clk 0:00:04]} 37. Nf5 {[%clk 0:00:13]}  Qd7 {[%clk 0:00:05]} 38. Kh3 {[%clk 0:00:12]}  Bxa1 {[%clk 0:00:03]} 39. Qxa1 {[%clk 0:00:13]}  Re5 {[%clk 0:00:03]} 40. Kg2 {[%clk 0:00:13]}  d5 {[%clk 0:00:03]} 41. cxd5 {[%clk 0:00:10]}  cxd5 {[%clk 0:00:04]} 42. Rg3 {[%clk 0:00:09]}  dxe4 {[%clk 0:00:03]} 43. Qxe5 {[%clk 0:00:10]}  Qxd2+ {[%clk 0:00:02]} 44. Kh3 {[%clk 0:00:10]}  Qe2 {[%clk 0:00:02]} 45. Qg7# {[%clk 0:00:11]} 1-0


[Site "https://www.chess.com"]

[Event "Titled Tuesday Blitz July 05 Late 2022"]
[White "Tikhonov, Viacheslav"]
[Black "Abdrlauf, Elham"]
[WhiteFideId "44196407"]
[BlackFideId "1533533"]
[WhiteElo "1839"]
[BlackElo "2429"]
[Result "0-1"]
[Round "01"]
[TimeControl "180+1"]
[Date "2022.07.05"]
[WhiteClock "0:00:06"]
[BlackClock "0:00:09"]

1. d3 {[%clk 0:02:59]}  g6 {[%clk 0:03:00]} 2. Nf3 {[%clk 0:02:57]}  Bg7 {[%clk 0:02:59]} 3. c4 {[%clk 0:02:57]}  d6 {[%clk 0:02:59]} 4. g3 {[%clk 0:02:55]}  Nf6 {[%clk 0:03:00]} 5. Bg2 {[%clk 0:02:55]}  O-O {[%clk 0:02:59]} 6. O-O {[%clk 0:02:55]}  e5 {[%clk 0:02:59]} 7. Nc3 {[%clk 0:02:55]}  Nc6 {[%clk 0:02:58]} 8. h3 {[%clk 0:02:53]}  h6 {[%clk 0:02:52]} 9. a3 {[%clk 0:02:51]}  a5 {[%clk 0:02:50]} 10. Qc2 {[%clk 0:02:51]}  Re8 {[%clk 0:02:49]} 11. b3 {[%clk 0:02:49]}  e4 {[%clk 0:02:39]} 12. dxe4 {[%clk 0:02:45]}  Nxe4 {[%clk 0:02:39]} 13. Bb2 {[%clk 0:02:46]}  Bf5 {[%clk 0:02:36]} 14. Nxe4 {[%clk 0:02:42]}  Bxe4 {[%clk 0:02:37]} 15. Qc1 {[%clk 0:02:42]}  Bf5 {[%clk 0:02:25]} 16. Bxg7 {[%clk 0:02:41]}  Kxg7 {[%clk 0:02:26]} 17. Qc3+ {[%clk 0:02:35]}  Qf6 {[%clk 0:02:23]} 18. Qxf6+ {[%clk 0:02:35]}  Kxf6 {[%clk 0:02:24]} 19. e3 {[%clk 0:02:36]}  Rab8 {[%clk 0:01:54]} 20. Ra2 {[%clk 0:02:25]}  b5 {[%clk 0:01:34]} 21. Nd2 {[%clk 0:02:22]}  Ne5 {[%clk 0:01:28]} 22. cxb5 {[%clk 0:02:16]}  Rxb5 {[%clk 0:01:25]} 23. f4 {[%clk 0:02:13]}  Nd7 {[%clk 0:01:25]} 24. e4 {[%clk 0:02:01]}  Be6 {[%clk 0:01:24]} 25. Rb2 {[%clk 0:02:01]}  Nc5 {[%clk 0:01:13]} 26. e5+ {[%clk 0:01:56]}  dxe5 {[%clk 0:01:03]} 27. fxe5+ {[%clk 0:01:55]}  Kg7 {[%clk 0:00:54]} 28. Bc6 {[%clk 0:01:53]}  Reb8 {[%clk 0:00:55]} 29. Bxb5 {[%clk 0:01:53]}  Rxb5 {[%clk 0:00:56]} 30. Kh2 {[%clk 0:01:45]}  Nd3 {[%clk 0:00:56]} 31. Rc2 {[%clk 0:01:42]}  Rxe5 {[%clk 0:00:55]} 32. Nf3 {[%clk 0:01:38]}  Re3 {[%clk 0:00:17]} 33. Nd4 {[%clk 0:01:12]}  Bd5 {[%clk 0:00:16]} 34. Rc3 {[%clk 0:01:12]}  c5 {[%clk 0:00:12]} 35. Rd1 {[%clk 0:01:03]}  Be4 {[%clk 0:00:06]} 36. Rdxd3 {[%clk 0:00:40]}  Rxd3 {[%clk 0:00:06]} 37. Rxd3 {[%clk 0:00:36]}  Bxd3 {[%clk 0:00:07]} 38. Nc6 {[%clk 0:00:35]}  c4 {[%clk 0:00:07]} 39. bxc4 {[%clk 0:00:32]}  Bxc4 {[%clk 0:00:07]} 40. Nxa5 {[%clk 0:00:31]}  Bd5 {[%clk 0:00:07]} 41. Kg1 {[%clk 0:00:28]}  Kf6 {[%clk 0:00:07]} 42. Kf2 {[%clk 0:00:29]}  Ke5 {[%clk 0:00:08]} 43. Ke3 {[%clk 0:00:28]}  f5 {[%clk 0:00:08]} 44. a4 {[%clk 0:00:28]}  g5 {[%clk 0:00:07]} 45. Kd3 {[%clk 0:00:27]}  f4 {[%clk 0:00:04]} 46. gxf4+ {[%clk 0:00:27]}  Kxf4 {[%clk 0:00:03]} 47. Kd4 {[%clk 0:00:27]}  Be6 {[%clk 0:00:04]} 48. Nc6 {[%clk 0:00:24]}  Bxh3 {[%clk 0:00:04]} 49. a5 {[%clk 0:00:23]}  Bf1 {[%clk 0:00:04]} 50. Ne5 {[%clk 0:00:19]}  g4 {[%clk 0:00:05]} 51. Nd3+ {[%clk 0:00:13]}  Kf5 {[%clk 0:00:01]} 52. a6 {[%clk 0:00:13]}  h5 {[%clk 0:00:02]} 53. a7 {[%clk 0:00:08]}  Bg2 {[%clk 0:00:02]} 54. Ke3 {[%clk 0:00:09]}  Ba8 {[%clk 0:00:02]} 55. Kf2 {[%clk 0:00:06]}  h4 {[%clk 0:00:03]} 56. Nc1 {[%clk 0:00:02]}  g3+ {[%clk 0:00:04]} 57. Kg1 {[%clk 0:00:03]}  h3 {[%clk 0:00:04]} 58. Ne2 {[%clk 0:00:03]}  h2+ {[%clk 0:00:05]} 59. Kf1 {[%clk 0:00:03]}  g2+ {[%clk 0:00:05]} 60. Kf2 {[%clk 0:00:03]}  h1=Q {[%clk 0:00:05]} 61. Ng3+ {[%clk 0:00:03]}  Kg4 {[%clk 0:00:06]} 62. Nxh1 {[%clk 0:00:02]}  gxh1=Q {[%clk 0:00:07]} 63. Ke3 {[%clk 0:00:03]}  Qb7 {[%clk 0:00:07]} 64. Kd4 {[%clk 0:00:04]}  Qd5+ {[%clk 0:00:07]} 65. Kc3 {[%clk 0:00:05]}  Qc5+ {[%clk 0:00:08]} 66. Kb3 {[%clk 0:00:04]}  Kf4 {[%clk 0:00:09]} 67. Ka4 {[%clk 0:00:05]}  Qb6 {[%clk 0:00:09]} 68. Ka3 {[%clk 0:00:05]}  Bd5 {[%clk 0:00:08]} 69. Ka4 {[%clk 0:00:06]}  Bc4 {[%clk 0:00:07]} 70. a8=Q {[%clk 0:00:05]}  Qb5+ {[%clk 0:00:08]} 71. Ka3 {[%clk 0:00:06]}  Qb3# {[%clk 0:00:09]} 0-1


[Site "https://www.chess.com"]

[Event "Titled Tuesday Blitz July 05 Late 2022"]
[White "Toncheva, Nadya"]
[Black "Eljanov, Pavel"]
[WhiteFideId "2924056"]
[BlackFideId "14102951"]
[WhiteElo "1888"]
[BlackElo "2601"]
[Result "0-1"]
[Round "01"]
[TimeControl "180+1"]
[Date "2022.07.05"]
[WhiteClock "0:00:11"]
[BlackClock "0:00:43"]

1. e4 {[%clk 0:03:00]}  c6 {[%clk 0:02:57]} 2. d4 {[%clk 0:02:59]}  d5 {[%clk 0:02:58]} 3. Nc3 {[%clk 0:02:59]}  dxe4 {[%clk 0:02:58]} 4. Nxe4 {[%clk 0:02:59]}  Nf6 {[%clk 0:02:58]} 5. Nxf6+ {[%clk 0:02:59]}  exf6 {[%clk 0:02:59]} 6. c3 {[%clk 0:02:59]}  Bd6 {[%clk 0:02:59]} 7. Bd3 {[%clk 0:02:59]}  O-O {[%clk 0:02:59]} 8. Qc2 {[%clk 0:03:00]}  Re8+ {[%clk 0:02:57]} 9. Ne2 {[%clk 0:03:00]}  h5 {[%clk 0:02:58]} 10. Bd2 {[%clk 0:03:00]}  Nd7 {[%clk 0:02:56]} 11. O-O {[%clk 0:03:00]}  Qc7 {[%clk 0:02:50]} 12. h3 {[%clk 0:02:57]}  Nf8 {[%clk 0:02:50]} 13. Rae1 {[%clk 0:02:51]}  h4 {[%clk 0:02:47]} 14. Be3 {[%clk 0:02:38]}  Be6 {[%clk 0:02:39]} 15. b3 {[%clk 0:02:34]}  Qd7 {[%clk 0:02:35]} 16. Nf4 {[%clk 0:02:29]}  Bc7 {[%clk 0:02:30]} 17. Nxe6 {[%clk 0:02:08]}  Nxe6 {[%clk 0:02:30]} 18. Bf5 {[%clk 0:02:00]}  Qd6 {[%clk 0:02:25]} 19. f4 {[%clk 0:01:50]}  g6 {[%clk 0:02:21]} 20. Bd3 {[%clk 0:01:40]}  f5 {[%clk 0:02:15]} 21. Bd2 {[%clk 0:01:32]}  Ng7 {[%clk 0:02:07]} 22. Be2 {[%clk 0:01:17]}  Re7 {[%clk 0:01:57]} 23. Bf3 {[%clk 0:01:14]}  Rae8 {[%clk 0:01:42]} 24. Qc1 {[%clk 0:01:11]}  Ne6 {[%clk 0:01:12]} 25. Bd1 {[%clk 0:01:01]}  Ng5 {[%clk 0:01:10]} 26. Rxe7 {[%clk 0:00:50]}  Rxe7 {[%clk 0:01:10]} 27. Re1 {[%clk 0:00:49]}  Ne4 {[%clk 0:00:57]} 28. Be3 {[%clk 0:00:42]}  g5 {[%clk 0:00:57]} 29. Bf2 {[%clk 0:00:14]}  Nxf2 {[%clk 0:00:52]} 30. Kxf2 {[%clk 0:00:12]}  Rxe1 {[%clk 0:00:49]} 31. Kxe1 {[%clk 0:00:13]}  Qe7+ {[%clk 0:00:48]} 32. Kf1 {[%clk 0:00:11]}  Bxf4 {[%clk 0:00:49]} 33. Qc2 {[%clk 0:00:11]}  Qe3 {[%clk 0:00:47]} 34. Qxf5 {[%clk 0:00:11]}  Bg3 {[%clk 0:00:43]} 0-1


[Site "https://www.chess.com"]

[Event "Titled Tuesday Blitz July 05 Late 2022"]
[White "Vakhlamov, Igor L."]
[Black "De La Colina, Nicolas"]
[WhiteFideId "24126748"]
[BlackFideId "30946921"]
[WhiteElo "2401"]
[BlackElo "2046"]
[Result "1-0"]
[Round "01"]
[TimeControl "180+1"]
[Date "2022.07.06"]
[WhiteClock "0:01:27"]
[BlackClock "0:01:18"]

1. e4 {[%clk 0:03:00]}  c5 {[%clk 0:02:59]} 2. Nf3 {[%clk 0:03:00]}  Nc6 {[%clk 0:02:59]} 3. Nc3 {[%clk 0:03:01]}  d6 {[%clk 0:02:57]} 4. Bb5 {[%clk 0:03:01]}  Bg4 {[%clk 0:02:49]} 5. h3 {[%clk 0:02:59]}  Bh5 {[%clk 0:02:48]} 6. g4 {[%clk 0:02:57]}  Bg6 {[%clk 0:02:48]} 7. d4 {[%clk 0:02:49]}  cxd4 {[%clk 0:02:42]} 8. Nxd4 {[%clk 0:02:31]}  Rc8 {[%clk 0:02:40]} 9. f4 {[%clk 0:02:31]}  h6 {[%clk 0:02:27]} 10. Be3 {[%clk 0:02:28]}  Nf6 {[%clk 0:02:16]} 11. Qf3 {[%clk 0:02:22]}  e5 {[%clk 0:01:58]} 12. fxe5 {[%clk 0:02:12]}  dxe5 {[%clk 0:01:59]} 13. Nf5 {[%clk 0:01:54]}  Bxf5 {[%clk 0:01:54]} 14. Qxf5 {[%clk 0:01:50]}  Bb4 {[%clk 0:01:53]} 15. Qxe5+ {[%clk 0:01:46]}  Kf8 {[%clk 0:01:51]} 16. Bxc6 {[%clk 0:01:43]}  Rxc6 {[%clk 0:01:52]} 17. Rd1 {[%clk 0:01:43]}  Qc7 {[%clk 0:01:39]} 18. Qxc7 {[%clk 0:01:36]}  Rxc7 {[%clk 0:01:40]} 19. Rd8+ {[%clk 0:01:34]}  Ne8 {[%clk 0:01:35]} 20. Bd4 {[%clk 0:01:28]}  Ke7 {[%clk 0:01:30]} 21. Ra8 {[%clk 0:01:28]}  a6 {[%clk 0:01:23]} 22. O-O {[%clk 0:01:27]}  Rf8 {[%clk 0:01:18]} 23. Nd5+ {[%clk 0:01:27]} 1-0


[Site "https://www.chess.com"]

[Event "Titled Tuesday Blitz July 05 Late 2022"]
[White "Veiga, Jose Francisco R P Neves"]
[Black "Samsonkin, Artiom"]
[WhiteFideId "1930087"]
[BlackFideId "13503111"]
[WhiteElo "2288"]
[BlackElo "2513"]
[Result "1/2-1/2"]
[Round "01"]
[TimeControl "180+1"]
[Date "2022.07.06"]
[WhiteClock "0:00:08"]
[BlackClock "0:00:06"]

1. Nf3 {[%clk 0:02:59]}  Nf6 {[%clk 0:02:52]} 2. b3 {[%clk 0:02:58]}  b6 {[%clk 0:02:51]} 3. c4 {[%clk 0:02:58]}  Bb7 {[%clk 0:02:51]} 4. e3 {[%clk 0:02:59]}  g6 {[%clk 0:02:52]} 5. Bb2 {[%clk 0:02:59]}  Bg7 {[%clk 0:02:53]} 6. Be2 {[%clk 0:02:59]}  O-O {[%clk 0:02:53]} 7. O-O {[%clk 0:03:00]}  e6 {[%clk 0:02:50]} 8. d4 {[%clk 0:03:00]}  d6 {[%clk 0:02:46]} 9. Nbd2 {[%clk 0:02:59]}  Nbd7 {[%clk 0:02:45]} 10. b4 {[%clk 0:02:56]}  Qe7 {[%clk 0:02:44]} 11. a3 {[%clk 0:02:55]}  e5 {[%clk 0:02:41]} 12. d5 {[%clk 0:02:52]}  c6 {[%clk 0:02:40]} 13. e4 {[%clk 0:02:52]}  Nh5 {[%clk 0:02:19]} 14. Re1 {[%clk 0:02:49]}  cxd5 {[%clk 0:02:06]} 15. cxd5 {[%clk 0:02:40]}  Nf4 {[%clk 0:01:48]} 16. Bf1 {[%clk 0:02:40]}  f5 {[%clk 0:01:48]} 17. g3 {[%clk 0:02:33]}  fxe4 {[%clk 0:01:39]} 18. Nxe4 {[%clk 0:02:31]}  Nh5 {[%clk 0:01:15]} 19. Rc1 {[%clk 0:02:28]}  Ndf6 {[%clk 0:01:10]} 20. Nxf6+ {[%clk 0:02:26]}  Qxf6 {[%clk 0:00:57]} 21. Bg2 {[%clk 0:02:25]}  Rf7 {[%clk 0:00:50]} 22. Qd3 {[%clk 0:01:45]}  Raf8 {[%clk 0:00:34]} 23. Re2 {[%clk 0:01:27]}  Qd8 {[%clk 0:00:33]} 24. Qe4 {[%clk 0:01:20]}  Nf6 {[%clk 0:00:33]} 25. Qh4 {[%clk 0:01:15]}  h6 {[%clk 0:00:26]} 26. Nd2 {[%clk 0:01:00]}  b5 {[%clk 0:00:19]} 27. Ne4 {[%clk 0:00:31]}  Nxd5 {[%clk 0:00:17]} 28. Qg4 {[%clk 0:00:29]}  Kh7 {[%clk 0:00:16]} 29. Rd2 {[%clk 0:00:25]}  Qe7 {[%clk 0:00:09]} 30. Rcd1 {[%clk 0:00:23]}  Nf6 {[%clk 0:00:09]} 31. Nxf6+ {[%clk 0:00:23]}  Qxf6 {[%clk 0:00:09]} 32. Bxb7 {[%clk 0:00:23]}  Rxb7 {[%clk 0:00:10]} 33. f4 {[%clk 0:00:20]}  Qe7 {[%clk 0:00:09]} 34. Rxd6 {[%clk 0:00:20]}  exf4 {[%clk 0:00:07]} 35. Qxg6+ {[%clk 0:00:18]}  Kh8 {[%clk 0:00:06]} 36. Qxh6+ {[%clk 0:00:18]}  Kg8 {[%clk 0:00:06]} 37. Qxg7+ {[%clk 0:00:08]}  Qxg7 {[%clk 0:00:06]} 38. Bxg7 {[%clk 0:00:09]}  Rxg7 {[%clk 0:00:07]} 39. Rd7 {[%clk 0:00:08]}  Rg6 {[%clk 0:00:06]} 40. R1d6 {[%clk 0:00:07]}  Rg5 {[%clk 0:00:05]} 41. Rd5 {[%clk 0:00:07]}  Rg4 {[%clk 0:00:06]} 42. Rd4 {[%clk 0:00:07]}  Rg5 {[%clk 0:00:06]} 43. R7d5 {[%clk 0:00:07]}  Rg7 {[%clk 0:00:06]} 44. Rd7 {[%clk 0:00:07]}  Rg6 {[%clk 0:00:06]} 45. R7d6 {[%clk 0:00:07]}  Rg5 {[%clk 0:00:07]} 46. R6d5 {[%clk 0:00:07]}  Rg7 {[%clk 0:00:07]} 47. Rd7 {[%clk 0:00:07]}  Rg6 {[%clk 0:00:07]} 48. R7d6 {[%clk 0:00:08]}  Rg5 {[%clk 0:00:06]} 49. R6d5 {[%clk 0:00:08]} 1/2-1/2


[Site "https://www.chess.com"]

[Event "Titled Tuesday Blitz July 05 Late 2022"]
[White "Voege, Tobias"]
[Black "Ponkratov, Pavel"]
[WhiteFideId "1270513"]
[BlackFideId "4157800"]
[WhiteElo "2379"]
[BlackElo "2502"]
[Result "0-1"]
[Round "01"]
[TimeControl "180+1"]
[Date "2022.07.05"]
[WhiteClock "0:01:53"]
[BlackClock "0:02:26"]

1. d4 {[%clk 0:03:00]}  d5 {[%clk 0:02:59]} 2. c4 {[%clk 0:03:01]}  e6 {[%clk 0:02:59]} 3. Nc3 {[%clk 0:03:01]}  dxc4 {[%clk 0:02:59]} 4. e4 {[%clk 0:03:01]}  c5 {[%clk 0:03:00]} 5. d5 {[%clk 0:03:01]}  exd5 {[%clk 0:03:00]} 6. exd5 {[%clk 0:03:02]}  Bd6 {[%clk 0:03:00]} 7. Bxc4 {[%clk 0:03:02]}  a6 {[%clk 0:03:01]} 8. a4 {[%clk 0:03:00]}  Nf6 {[%clk 0:03:01]} 9. Nge2 {[%clk 0:02:58]}  O-O {[%clk 0:03:01]} 10. Bg5 {[%clk 0:02:56]}  Nbd7 {[%clk 0:02:59]} 11. Qd2 {[%clk 0:02:52]}  Ne5 {[%clk 0:02:58]} 12. Ba2 {[%clk 0:02:52]}  Bf5 {[%clk 0:02:57]} 13. O-O {[%clk 0:02:51]}  h6 {[%clk 0:02:52]} 14. Bh4 {[%clk 0:02:49]}  Re8 {[%clk 0:02:49]} 15. Rfe1 {[%clk 0:02:47]}  Nd3 {[%clk 0:02:48]} 16. Bxf6 {[%clk 0:02:31]}  Qxf6 {[%clk 0:02:45]} 17. Rf1 {[%clk 0:02:31]}  Bg6 {[%clk 0:02:37]} 18. Ng3 {[%clk 0:02:23]}  h5 {[%clk 0:02:34]} 19. Bc4 {[%clk 0:02:05]}  Nf4 {[%clk 0:02:33]} 20. Rfe1 {[%clk 0:02:00]}  Qg5 {[%clk 0:02:27]} 21. f3 {[%clk 0:01:53]}  Nh3+ {[%clk 0:02:26]} 0-1


[Site "https://www.chess.com"]